bitfinex-derivatives/quotes_SOLF0:USTF0_20250914
["timestamp","ask_amount","ask_price","bid_price","bid_amount"]
[1757841958614,0.82833998,247.3,247.21,6.42]
[1757841960116,3.88,247.29,247.21,6.42]
[1757841960317,0.82833998,247.24,247.21,6.42]
[1757841961212,0.82833998,247.24,247.13,12.39776869]
[1757841961414,0.82833998,247.27,247.16,7.02]
[1757841961615,0.82833998,247.3,247.16,7.02]
[1757841964417,3.88,247.29,247.16,7.02]
[1757841964613,3.88,247.29,247.16,7.84833998]
[1757841969321,3.88,247.29,247.16,7.02]
[1757841969522,3.88,247.29,247.19,7.02]
[1757841975632,3.88,247.33,247.19,7.02]
[1757841975824,2.82944102,247.32,247.19,7.02]
[1757841976134,1.29479921,247.34,247.19,7.02]
[1757841976328,2.82941123,247.33,247.19,7.02]
[1757841976634,3.88,247.31,247.19,7.02]
[1757841976834,1.29479921,247.34,247.19,7.02]
[1757841977132,2.82941123,247.33,247.19,7.02]
[1757841977334,3.88,247.31,247.19,7.02]
[1757841977535,1.29479921,247.34,247.19,7.02]
[1757841977729,3.88,247.32,247.19,7.02]
[1757841977938,2.82947789,247.31,247.19,7.02]
[1757841978134,1.29479921,247.34,247.19,7.02]
[1757841978332,3.88,247.32,247.19,7.02]
[1757841978530,3.88,247.3,247.19,7.02]
[1757841978726,3.88,247.33,247.19,7.02]
[1757841978931,2.82937549,247.32,247.19,7.02]
[1757841979137,5.22,247.37,247.19,7.02]
[1757841979138,1.29479921,247.3,247.19,7.02]
[1757841979327,3.88,247.28,247.19,7.02]
[1757841982036,1.29479921,247.3,247.19,7.02]
[1757841982337,3.88,247.28,247.19,7.02]
[1757841982933,1.29479921,247.3,247.19,7.02]
[1757841982934,3.88,247.27,247.19,7.02]
[1757841985433,3.88,247.39,247.19,7.02]
[1757841985643,3.88,247.34,247.19,7.02]
[1757841985839,2.83002628,247.33,247.19,7.02]
[1757841986033,2.83002628,247.32,247.19,7.02]
[1757841986230,3.88,247.34,247.19,7.02]
[1757841986429,2.830791,247.33,247.19,7.02]
[1757841986634,3.88,247.34,247.19,7.02]
[1757841986837,3.88,247.34,247.23,7.02]
[1757841987237,2.83159919,247.33,247.23,7.02]
[1757841987429,3.88,247.34,247.23,7.02]
[1757841987638,2.83159919,247.33,247.23,7.02]
[1757841987940,3.88,247.34,247.23,7.02]
[1757841988138,2.83159919,247.33,247.23,7.02]
[1757841988328,3.88,247.34,247.23,7.02]
[1757841988530,2.83280057,247.33,247.23,7.02]
[1757841988730,3.88,247.34,247.23,7.02]
[1757841988929,2.83280057,247.33,247.23,7.02]
[1757841989134,3.88,247.34,247.23,7.02]
[1757841989337,2.83299353,247.33,247.23,7.02]
[1757841989537,3.88,247.34,247.23,7.02]
[1757841989738,2.83299353,247.33,247.23,7.02]
[1757841989939,3.88,247.34,247.23,7.02]
[1757841990140,2.83299353,247.33,247.23,7.02]
[1757841990340,3.88,247.34,247.23,7.02]
[1757841990645,2.83307529,247.33,247.23,7.02]
[1757841990848,3.88,247.34,247.23,7.02]
[1757841991037,2.83307529,247.33,247.23,7.02]
[1757841991236,3.88,247.34,247.23,7.02]
[1757841991437,2.83301881,247.33,247.23,7.02]
[1757841991637,3.88,247.34,247.23,7.02]
[1757841991837,2.83301881,247.33,247.23,7.02]
[1757841992144,3.87,247.32,247.23,7.02]
[1757841994635,1.29479921,247.4,247.2,1.29479921]
[1757841994636,3.87,247.38,247.25,6.44]
[1757841994838,6.70270653,247.37,247.25,6.44]
[1757841995042,3.87,247.35,247.25,6.44]
[1757842002347,3.87,247.39,247.25,6.44]
[1757842002645,3.87,247.37,247.25,6.44]
[1757842003245,3.87,247.41,247.28,6.44]
[1757842007555,3.87,247.45,247.28,6.44]
[1757842008142,3.87,247.45,247.31,1.29479921]
[1757842008454,3.87,247.45,247.32,6.44]
[1757842011450,3.87,247.45,247.33,6.44]
[1757842012954,3.87,247.48,247.33,6.44]
[1757842013250,1.29479921,247.49,247.33,6.44]
[1757842013451,3.87,247.48,247.33,6.44]
[1757842014052,1.29479921,247.49,247.33,6.44]
[1757842014251,3.87,247.48,247.33,6.44]
[1757842014455,1.29479921,247.47,247.33,6.44]
[1757842014755,3.87,247.46,247.33,6.44]
[1757842019451,1.29479921,247.5,247.33,6.44]
[1757842019653,3.87,247.49,247.33,6.44]
[1757842019853,1.29479921,247.5,247.33,6.44]
[1757842020548,1.29479921,247.46,247.33,6.44]
[1757842021358,3.87,247.45,247.33,6.44]
[1757842028261,1.29479921,247.46,247.33,6.44]
[1757842028662,3.87,247.45,247.33,6.44]
[1757842028863,1.29479921,247.46,247.33,6.44]
[1757842029055,3.87,247.45,247.33,6.44]
[1757842029261,1.29479921,247.45,247.33,6.44]
[1757842029455,3.87,247.44,247.33,6.44]
[1757842029659,11.58,247.53,247.28,6.35]
[1757842029660,3.87,247.4,247.28,6.35]
[1757842029859,1.29479921,247.41,247.28,6.35]
[1757842030161,3.87,247.4,247.28,6.35]
[1757842030361,1.29479921,247.41,247.28,6.35]
[1757842030761,3.87,247.4,247.28,6.35]
[1757842031161,1.29479921,247.41,247.28,6.35]
[1757842031666,3.87,247.4,247.28,6.35]
[1757842031866,1.29479921,247.41,247.28,6.35]
[1757842032362,0.70354908,247.49,247.28,6.35]
[1757842032363,0.82825612,247.36,247.28,6.35]
[1757842032569,4.69825612,247.36,247.28,6.35]
[1757842033969,0.82825612,247.33,247.28,6.35]
[1757842034264,4.92,247.43,247.21,99.22825612]
[1757842034473,4.69825612,247.36,247.22,6.35]
[1757842035066,3.87,247.32,247.22,6.35]
[1757842038665,0.82825612,247.33,247.22,6.35]
[1757842040370,3.87,247.32,247.22,6.35]
[1757842041077,4.46,247.4,247.22,6.35]
[1757842041265,3.87,247.31,247.22,6.35]
[1757842043471,0.82825612,247.32,247.22,6.35]
[1757842043977,3.87,247.31,247.22,6.35]
[1757842051879,0.82825612,247.32,247.22,6.35]
[1757842052480,3.88,247.31,247.22,6.35]
[1757842055682,0.82825612,247.32,247.22,6.35]
[1757842056577,3.88,247.31,247.22,6.35]
[1757842059482,4.70825612,247.35,247.24,6.34]
[1757842059682,3.88,247.35,247.27,6.34]
[1757842060881,4.70825612,247.35,247.27,6.34]
[1757842061085,3.88,247.34,247.27,6.34]
[1757842061591,0.82825612,247.35,247.23,6.34]
[1757842061790,3.88,247.34,247.23,6.34]
[1757842062190,3.88,247.31,247.23,6.34]
[1757842076093,2.82945566,247.3,247.23,6.34]
[1757842077094,3.88,247.31,247.23,6.34]
[1757842077295,2.83048008,247.3,247.23,6.34]
[1757842077497,3.88,247.31,247.23,6.34]
[1757842077698,2.83048008,247.3,247.23,6.34]
[1757842078002,3.88,247.31,247.23,6.34]
[1757842078199,2.83162232,247.3,247.23,6.34]
[1757842078399,3.88,247.31,247.23,6.34]
[1757842078600,2.83162232,247.3,247.23,6.34]
[1757842078898,3.88,247.31,247.23,6.34]
[1757842079100,2.83162232,247.3,247.23,6.34]
[1757842079296,3.88,247.31,247.23,6.34]
[1757842079602,2.83233163,247.3,247.23,6.34]
[1757842079905,3.88,247.31,247.23,6.34]
[1757842080100,2.83241653,247.3,247.23,6.34]
[1757842080298,3.88,247.31,247.23,6.34]
[1757842080599,2.83326923,247.3,247.23,6.34]
[1757842080804,3.88,247.31,247.23,6.34]
[1757842081003,2.83326923,247.3,247.23,6.34]
[1757842081203,2.83357272,247.29,247.23,6.34]
[1757842081403,3.88,247.31,247.23,6.34]
[1757842081603,2.83357295,247.3,247.23,6.34]
[1757842081802,3.88,247.31,247.23,6.34]
[1757842082011,2.82294942,247.3,247.23,6.34]
[1757842082204,3.88,247.31,247.23,6.34]
[1757842082406,2.82323126,247.3,247.23,6.34]
[1757842082607,3.88,247.31,247.23,6.34]
[1757842082905,2.82323126,247.3,247.23,6.34]
[1757842083206,2.82338152,247.29,247.23,6.34]
[1757842083404,3.88,247.31,247.23,6.34]
[1757842083709,2.82342331,247.3,247.23,6.34]
[1757842083902,2.82342331,247.29,247.23,6.34]
[1757842084103,4.70825612,247.31,247.23,6.34]
[1757842084303,2.82338653,247.3,247.23,6.34]
[1757842084505,4.70825612,247.31,247.23,6.34]
[1757842084803,2.82334326,247.3,247.23,6.34]
[1757842084997,4.70825612,247.31,247.23,6.34]
[1757842085197,2.82334326,247.3,247.23,6.34]
[1757842085399,4.70825612,247.31,247.23,6.34]
[1757842085598,2.82332839,247.3,247.23,6.34]
[1757842085797,4.70825612,247.31,247.23,6.34]
[1757842085998,2.82245647,247.3,247.23,6.34]
[1757842086209,2.82250418,247.29,247.23,6.34]
[1757842086507,4.70825612,247.31,247.23,6.34]
[1757842086809,2.82246124,247.3,247.23,6.34]
[1757842087016,3.88,247.28,247.23,6.34]
[1757842087205,0.82825612,247.31,247.23,6.34]
[1757842087410,6.70264473,247.3,247.23,6.34]
[1757842087709,2.82264473,247.29,247.23,6.34]
[1757842088009,3.88,247.3,247.23,6.34]
[1757842088210,2.82264473,247.29,247.23,6.34]
[1757842088405,3.88,247.3,247.23,6.34]
[1757842088710,2.82272293,247.29,247.23,6.34]
[1757842088905,3.88,247.3,247.23,6.34]
[1757842089106,2.82272293,247.29,247.23,6.34]
[1757842089307,3.88,247.3,247.23,6.34]
[1757842089614,2.82271602,247.29,247.23,6.34]
[1757842089816,3.88,247.3,247.23,6.34]
[1757842090118,2.82271602,247.29,247.23,6.34]
[1757842090313,3.88,247.3,247.23,6.34]
[1757842090510,2.8227092,247.29,247.23,6.34]
[1757842090710,3.88,247.3,247.23,6.34]
[1757842090921,3.88,247.27,247.19,6.87]
[1757842091121,0.82825612,247.25,247.19,6.87]
[1757842091417,3.88,247.27,247.19,6.87]
[1757842096317,3.88,247.31,247.19,6.87]
[1757842096623,2.82177298,247.3,247.19,6.87]
[1757842096818,3.88,247.31,247.19,6.87]
[1757842097118,2.82177487,247.3,247.19,6.87]
[1757842097320,3.88,247.31,247.19,6.87]
[1757842097514,2.82178547,247.3,247.19,6.87]
[1757842097709,3.88,247.31,247.19,6.87]
[1757842097912,2.82178547,247.3,247.19,6.87]
[1757842098113,3.88,247.31,247.19,6.87]
[1757842098311,2.82175166,247.3,247.19,6.87]
[1757842098514,3.88,247.31,247.19,6.87]
[1757842098716,2.82179771,247.3,247.19,6.87]
[1757842098917,3.88,247.31,247.19,6.87]
[1757842099121,2.82179771,247.3,247.19,6.87]
[1757842099424,3.88,247.31,247.19,6.87]
[1757842099615,2.82181149,247.3,247.19,6.87]
[1757842099813,3.88,247.31,247.19,6.87]
[1757842100022,2.82181149,247.3,247.19,6.87]
[1757842100222,3.88,247.31,247.19,6.87]
[1757842100528,2.82182693,247.3,247.19,6.87]
[1757842100720,3.88,247.31,247.19,6.87]
[1757842100916,2.82182693,247.3,247.19,6.87]
[1757842101115,3.88,247.31,247.19,6.87]
[1757842101321,2.82178885,247.3,247.19,6.87]
[1757842101520,3.88,247.31,247.19,6.87]
[1757842101723,2.8218346,247.3,247.19,6.87]
[1757842101923,3.88,247.31,247.19,6.87]
[1757842102223,2.8218346,247.3,247.19,6.87]
[1757842102518,3.88,247.31,247.19,6.87]
[1757842102715,2.8218526,247.3,247.19,6.87]
[1757842102913,3.88,247.31,247.19,6.87]
[1757842103116,2.8218526,247.3,247.19,6.87]
[1757842103324,3.88,247.31,247.19,6.87]
[1757842103524,2.82185003,247.3,247.19,6.87]
[1757842103726,3.88,247.31,247.19,6.87]
[1757842103920,2.82185003,247.3,247.19,6.87]
[1757842104117,3.88,247.31,247.19,6.87]
[1757842104427,2.82180298,247.3,247.19,6.87]
[1757842104627,3.88,247.31,247.19,6.87]
[1757842104926,2.82184919,247.3,247.19,6.87]
[1757842105129,2.82277639,247.29,247.19,6.87]
[1757842105328,3.88,247.31,247.19,6.87]
[1757842105628,3.88,247.35,247.21,6.87]
[1757842105820,2.82227574,247.34,247.22,6.87]
[1757842106018,3.88,247.35,247.23,6.87]
[1757842106221,2.82251038,247.34,247.23,6.87]
[1757842106430,2.82176592,247.33,247.23,6.87]
[1757842106629,3.88,247.35,247.23,6.87]
[1757842106825,2.82176513,247.34,247.23,6.87]
[1757842107028,2.82176513,247.33,247.23,6.87]
[1757842107226,3.88,247.35,247.23,6.87]
[1757842107427,2.82117267,247.34,247.23,6.87]
[1757842107628,3.88,247.35,247.23,6.87]
[1757842107830,2.82117267,247.34,247.23,6.87]
[1757842108026,3.88,247.35,247.23,6.87]
[1757842108227,2.82111431,247.34,247.23,6.87]
[1757842108430,3.88,247.35,247.23,6.87]
[1757842108729,2.8205673,247.34,247.23,6.87]
[1757842108928,3.88,247.35,247.23,6.87]
[1757842109129,2.82059289,247.34,247.23,6.87]
[1757842109331,3.88,247.35,247.23,6.87]
[1757842109532,2.82015553,247.34,247.23,6.87]
[1757842109832,3.88,247.35,247.23,6.87]
[1757842110031,2.82015569,247.34,247.23,6.87]
[1757842110224,3.88,247.35,247.23,6.87]
[1757842110429,2.81975762,247.34,247.23,6.87]
[1757842110629,3.88,247.35,247.23,6.87]
[1757842110831,2.81974914,247.34,247.23,6.87]
[1757842111024,3.88,247.35,247.23,6.87]
[1757842111331,2.81974899,247.34,247.23,6.87]
[1757842111531,3.88,247.35,247.23,6.87]
[1757842111732,2.81939115,247.34,247.23,6.87]
[1757842111925,13.65623639,247.4,247.23,6.87]
[1757842112128,2.81947612,247.39,247.23,6.87]
[1757842112324,2.81947612,247.38,247.23,6.87]
[1757842112524,2.81947612,247.37,247.23,6.87]
[1757842112731,3.88,247.35,247.23,6.87]
[1757842113032,3.88,247.33,247.23,6.87]
[1757842120048,3.88,247.34,247.23,6.87]
[1757842120247,1.29502379,247.31,247.23,6.87]
[1757842120445,3.88,247.3,247.23,6.87]
[1757842121345,1.29502379,247.31,247.23,6.87]
[1757842121544,3.88,247.3,247.23,6.87]
[1757842127355,3.88,247.32,247.23,6.87]
[1757842127555,1.29502379,247.29,247.23,6.87]
[1757842128853,3.88,247.3,247.23,6.87]
[1757842129054,5.17502379,247.3,247.23,6.87]
[1757842134558,3.88,247.29,247.23,6.87]
[1757842135760,2.82136941,247.28,247.17,6.94]
[1757842135956,2.82153936,247.27,247.17,6.94]
[1757842136156,3.88,247.26,247.17,6.94]
[1757842136354,5.17502379,247.26,247.17,6.94]
[1757842137255,3.89,247.25,247.17,6.94]
[1757842141256,3.88,247.25,247.17,6.94]
[1757842141562,1.29502379,247.3,247.1,6.88]
[1757842141563,3.88,247.21,247.1,6.88]
[1757842142263,1.29502379,247.22,247.1,6.88]
[1757842142466,5.17502379,247.18,247.1,6.88]
[1757842144961,1.29502379,247.18,247.1,6.88]
[1757842145162,3.88,247.17,247.1,6.88]
[1757842145565,1.29502379,247.18,247.03,6.88]
[1757842145763,3.88,247.17,247.03,6.88]
[1757842146762,1.29502379,247.19,247.03,6.88]
[1757842147062,3.88,247.18,247.03,6.88]
[1757842147465,3.88,247.25,247.03,6.88]
[1757842147666,3.88,247.17,247.03,6.88]
[1757842149370,1.29502379,247.18,247.03,6.88]
[1757842149562,3.88,247.17,247.03,6.88]
[1757842150169,1.29502379,247.18,246.98,6.88]
[1757842150170,3.88,247.12,246.98,6.88]
[1757842150371,1.29502379,247.13,246.98,6.88]
[1757842150567,13.42588608,247.13,246.98,6.88]
[1757842151071,3.88,247.12,246.98,6.88]
[1757842151270,13.42588608,247.13,246.98,6.88]
[1757842151471,3.88,247.12,246.98,6.88]
[1757842151664,13.42588608,247.13,246.98,6.88]
[1757842152264,3.88,247.12,246.98,6.88]
[1757842152475,3.88,247.08,246.98,6.88]
[1757842153075,21.09502379,247.12,246.98,6.88]
[1757842153677,3.88,247.11,246.98,6.88]
[1757842155677,3.88,247.12,246.98,6.88]
[1757842156170,46.0729677,247.13,246.98,6.88]
[1757842156366,3.88,247.07,246.98,6.88]
[1757842158577,0.83027223,247.08,246.98,6.88]
[1757842158778,4.71027223,247.11,246.98,6.88]
[1757842160077,4.71027223,247.11,247.0,6.88]
[1757842161676,3.88,247.11,247.0,6.88]
[1757842161880,4.71027223,247.11,247.0,6.88]
[1757842177792,0.83027223,247.08,247.0,6.88]
[1757842179090,3.9,247.07,247.0,6.88]
[1757842179897,4.73027223,247.07,247.0,6.88]
[1757842180194,0.83027223,247.07,247.0,6.88]
[1757842180991,3.9,247.03,246.94,6.8]
[1757842181187,0.83027223,247.04,246.94,6.8]
[1757842181992,3.9,247.06,246.94,6.8]
[1757842182194,0.83027223,247.04,246.94,6.8]
[1757842182696,0.83027223,247.04,246.94,7.63027223]
[1757842182895,3.9,247.06,246.94,7.63027223]
[1757842183097,0.83027223,247.06,246.94,7.63027223]
[1757842183895,3.9,247.09,246.94,7.63027223]
[1757842184101,0.83027223,247.07,246.94,7.63027223]
[1757842184296,0.83027223,247.07,246.97,0.83027223]
[1757842184495,0.83027223,247.07,246.98,6.8]
[1757842185500,3.9,247.09,246.98,6.8]
[1757842185501,0.83027223,247.08,246.98,6.8]
[1757842186002,3.9,247.09,246.98,6.8]
[1757842186202,4.73027223,247.09,246.98,6.8]
[1757842186595,0.83027223,247.09,246.98,6.8]
[1757842189303,0.83027223,247.12,247.01,6.8]
[1757842192308,3.9,247.13,247.01,6.8]
[1757842192503,0.83027223,247.11,247.01,6.8]
[1757842195709,4.72027223,247.11,247.01,6.8]
[1757842199314,3.89,247.11,247.01,6.8]
[1757842199508,4.72027223,247.11,247.01,6.8]
[1757842201207,3.89,247.11,247.01,6.8]
[1757842201408,0.83027223,247.14,247.01,7.63027223]
[1757842205918,0.83027223,247.15,247.01,7.63027223]
[1757842206212,3.89,247.16,247.04,0.83027223]
[1757842206516,4.72027223,247.16,247.05,6.85]
[1757842207712,0.83027223,247.16,247.05,6.85]
[1757842208212,0.83027223,247.19,247.08,6.85]
[1757842208919,0.83027223,247.22,247.08,6.85]
[1757842209119,0.83027223,247.22,247.11,6.85]
[1757842212721,3.89,247.23,247.11,6.85]
[1757842212921,0.83027223,247.19,247.11,6.85]
[1757842213121,0.83027223,247.13,247.04,6.85]
[1757842213317,0.83027223,247.13,247.05,6.85]
[1757842214017,0.83027223,247.1,247.05,6.85]
[1757842214319,0.83027223,247.1,247.06,6.85]
[1757842214519,0.83027223,247.1,247.05,6.85]
[1757842215817,0.83027223,247.13,247.05,6.85]
[1757842216521,3.89,247.17,247.05,6.85]
[1757842216820,1.29639365,247.16,247.05,6.85]
[1757842217816,3.89,247.15,247.05,6.85]
[1757842218221,1.29639365,247.13,247.05,6.85]
[1757842219520,3.89,247.14,247.05,6.85]
[1757842228926,3.88,247.18,247.05,6.85]
[1757842230223,1.29639365,247.21,247.05,6.85]
[1757842230419,1.29639365,247.17,247.05,6.85]
[1757842230624,1.29639365,247.17,247.05,105.19]
[1757842231025,3.89,247.16,247.05,105.19]
[1757842231228,3.89,247.16,247.06,7.03]
[1757842234533,3.89,247.16,247.06,8.32639365]
[1757842237928,1.29639365,247.22,247.06,8.32639365]
[1757842238133,6.71635321,247.21,247.06,8.32639365]
[1757842238335,3.89,247.21,247.06,8.32639365]
[1757842241035,1.29639365,247.26,247.06,8.32639365]
[1757842241238,2.82629125,247.25,247.08,7.03]
[1757842241434,3.89,247.23,247.08,7.03]
[1757842241644,3.89,247.25,247.08,7.03]
[1757842241839,3.89,247.23,247.08,7.03]
[1757842242138,3.89,247.21,247.08,7.03]
[1757842243840,3.89,247.28,247.11,7.03]
[1757842244042,3.89,247.26,247.11,7.03]
[1757842246238,3.89,247.26,247.1,1.29639365]
[1757842246239,3.89,247.26,247.14,1.29639365]
[1757842246440,3.89,247.26,247.16,7.03]
[1757842249044,3.89,247.34,247.19,7.03]
[1757842249247,2.82098165,247.33,247.19,7.03]
[1757842249447,3.89,247.34,247.19,7.03]
[1757842249744,3.89,247.32,247.19,7.03]
[1757842249945,3.89,247.34,247.19,7.03]
[1757842250240,3.89,247.32,247.19,7.03]
[1757842250445,3.89,247.34,247.19,7.03]
[1757842250743,3.89,247.32,247.19,7.03]
[1757842250945,3.89,247.34,247.19,7.03]
[1757842251244,3.89,247.32,247.19,7.03]
[1757842251444,3.89,247.34,247.19,7.03]
[1757842251644,3.89,247.32,247.19,7.03]
[1757842251946,1.29639365,247.35,247.19,7.03]
[1757842252249,2.8185109,247.34,247.19,7.03]
[1757842252440,3.89,247.33,247.19,7.03]
[1757842252642,1.29639365,247.35,247.19,7.03]
[1757842252840,2.81775713,247.34,247.19,7.03]
[1757842253041,3.89,247.33,247.19,7.03]
[1757842253240,3.89,247.34,247.19,7.03]
[1757842253945,1.29639365,247.35,247.19,7.03]
[1757842254139,2.81707693,247.34,247.19,7.03]
[1757842254345,3.89,247.33,247.19,7.03]
[1757842254549,1.29639365,247.35,247.19,7.03]
[1757842254849,3.89,247.34,247.19,7.03]
[1757842257451,3.89,247.34,247.19,8.32639365]
[1757842259350,3.88,247.36,247.19,8.32639365]
[1757842259546,3.88,247.36,247.19,15.53]
[1757842259748,1.29639365,247.33,247.19,7.03]
[1757842260055,3.88,247.32,247.19,7.03]
[1757842260249,1.29639365,247.33,247.19,7.03]
[1757842260450,3.88,247.32,247.19,7.03]
[1757842261753,1.29639365,247.33,247.19,7.03]
[1757842262054,3.88,247.32,247.19,7.03]
[1757842267752,3.88,247.37,247.19,7.03]
[1757842268348,3.88,247.37,247.21,1.29639365]
[1757842268657,3.88,247.37,247.22,6.5]
[1757842271854,3.88,247.38,247.22,6.5]
[1757842272057,1.29639365,247.35,247.22,6.5]
[1757842272256,3.88,247.34,247.22,6.5]
[1757842272656,1.29639365,247.35,247.22,6.5]
[1757842272855,3.88,247.34,247.22,6.5]
[1757842273264,1.29639365,247.35,247.22,6.5]
[1757842273554,3.88,247.34,247.22,6.5]
[1757842274154,1.29639365,247.31,247.22,6.5]
[1757842274358,1.29639365,247.31,247.13,271.66]
[1757842274359,3.88,247.3,247.16,6.5]
[1757842274559,1.29639365,247.31,247.16,6.5]
[1757842274860,3.88,247.3,247.16,6.5]
[1757842278461,4.70859885,247.3,247.18,0.82859885]
[1757842278661,4.70859885,247.3,247.19,6.5]
[1757842290271,3.88,247.3,247.19,6.5]
[1757842290469,5.2,247.39,247.22,6.82]
[1757842290670,4.69859885,247.33,247.22,6.82]
[1757842292277,3.87,247.33,247.22,6.82]
[1757842302482,3.87,247.33,247.25,6.82]
[1757842309389,3.87,247.33,247.25,7.64859885]
[1757842312388,12.08828484,247.43,247.23,14.64]
[1757842312389,0.82859885,247.41,247.3,6.82]
[1757842312585,3.87,247.4,247.3,6.82]
[1757842312786,0.82859885,247.41,247.23,14.64]
[1757842312787,3.87,247.34,247.23,6.82]
[1757842312993,3.87,247.34,247.25,6.82]
[1757842313491,3.88,247.31,247.25,6.82]
[1757842314390,4.70859885,247.31,247.25,6.82]
[1757842314583,3.88,247.3,247.2,6.64]
[1757842314987,0.82859885,247.29,247.2,6.64]
[1757842317595,3.88,247.3,247.2,6.64]
[1757842324196,3.88,247.3,247.22,7.04]
[1757842327201,3.89,247.33,247.22,7.04]
[1757842327796,3.89,247.33,247.25,7.04]
[1757842327998,3.89,247.33,247.25,7.86859885]
[1757842328801,3.89,247.37,247.25,7.86859885]
[1757842329098,3.89,247.37,247.29,7.04]
[1757842331905,3.89,247.37,247.31,0.82859885]
[1757842332401,3.89,247.37,247.32,7.04]
[1757842332805,3.89,247.42,247.31,7.86859885]
[1757842333003,0.82859885,247.43,247.31,7.86859885]
[1757842333197,2.82729354,247.42,247.31,7.86859885]
[1757842333499,0.82859885,247.43,247.31,7.86859885]
[1757842333702,2.82691699,247.42,247.31,7.86859885]
[1757842333901,3.89,247.41,247.31,7.86859885]
[1757842334300,3.89,247.42,247.31,7.86859885]
[1757842334497,0.82859885,247.43,247.31,7.86859885]
[1757842334702,2.82660886,247.42,247.31,7.86859885]
[1757842334899,3.89,247.42,247.31,7.86859885]
[1757842335907,0.82859885,247.43,247.31,7.86859885]
[1757842336106,3.89,247.41,247.31,7.86859885]
[1757842338506,3.89,247.41,247.31,7.04]
[1757842338703,3.89,247.45,247.31,7.04]
[1757842338904,2.82499493,247.44,247.31,7.04]
[1757842339200,3.89,247.45,247.31,7.04]
[1757842339402,1.2934675,247.46,247.31,7.04]
[1757842339403,3.89,247.43,247.31,7.04]
[1757842339599,3.89,247.45,247.31,7.04]
[1757842339807,3.89,247.43,247.31,7.04]
[1757842340107,3.89,247.45,247.31,7.04]
[1757842340310,2.82460257,247.44,247.31,7.04]
[1757842340610,3.89,247.39,247.31,7.04]
[1757842346719,3.89,247.51,247.31,7.04]
[1757842346919,3.89,247.47,247.31,7.04]
[1757842347115,2.82269504,247.46,247.31,7.04]
[1757842347413,3.89,247.47,247.31,7.04]
[1757842347618,2.82235332,247.46,247.31,7.04]
[1757842347818,1.2934675,247.48,247.31,7.04]
[1757842347819,3.88,247.47,247.31,7.04]
[1757842348021,6.70235332,247.46,247.31,7.04]
[1757842348225,1.2934675,247.48,247.31,7.04]
[1757842348417,2.82224124,247.47,247.31,7.04]
[1757842348622,3.88,247.47,247.31,8.3334675]
[1757842350123,3.88,247.47,247.36,1.2934675]
[1757842350327,3.88,247.47,247.37,6.62]